[Event "*** SCC Grand Prix: Titled Tuesday Blitz"]
[Site "Chess.com"]
[Date "2020.10.13"]
[Round "8"]
[White "AttilaTurzo"]
[Black "AlexSuv"]
[Result "0-1"]
[WhiteElo "2390"]
[BlackElo "2538"]
[TimeControl "180+1"]
[EndTime "11:35:13 PDT"]
[Termination "AlexSuv won on time"]

1. d4 {[%clk 0:03:00.9]} 1... Nf6 {[%clk 0:02:58.4]} 2. Nf3 {[%clk 0:03:00.9]}
2... e6 {[%clk 0:02:57.6]} 3. Bf4 {[%clk 0:03:01.4]} 3... b6 {[%clk 0:02:56.3]}
4. e3 {[%clk 0:03:00.3]} 4... Bb7 {[%clk 0:02:55.2]} 5. h3 {[%clk 0:03:00.9]}
5... d6 {[%clk 0:02:52.8]} 6. c4 {[%clk 0:02:59.8]} 6... Nbd7 {[%clk 0:02:51.9]}
7. Nc3 {[%clk 0:03:00.1]} 7... g6 {[%clk 0:02:51.1]} 8. Bd3 {[%clk 0:02:55.1]}
8... Bg7 {[%clk 0:02:51]} 9. e4 {[%clk 0:02:55.6]} 9... O-O {[%clk 0:02:47.5]}
10. Bg5 {[%clk 0:02:54.4]} 10... h6 {[%clk 0:02:46.7]} 11. Be3 {[%clk 0:02:52]}
11... e5 {[%clk 0:02:42.2]} 12. d5 {[%clk 0:02:50.7]} 12... Nh5 {[%clk
0:02:41.4]} 13. O-O {[%clk 0:02:37.3]} 13... Nf4 {[%clk 0:02:39.3]} 14. Re1
{[%clk 0:02:35.6]} 14... Nf6 {[%clk 0:02:29]} 15. Bf1 {[%clk 0:02:31.3]} 15...
Bc8 {[%clk 0:02:24.9]} 16. Kh2 {[%clk 0:02:30.8]} 16... g5 {[%clk 0:02:22.4]}
17. g3 {[%clk 0:02:30.5]} 17... Ng6 {[%clk 0:02:18.4]} 18. Nd2 {[%clk
0:02:26.9]} 18... Nh7 {[%clk 0:02:04.6]} 19. b4 {[%clk 0:02:23.9]} 19... a5
{[%clk 0:02:03.4]} 20. a3 {[%clk 0:02:21]} 20... f5 {[%clk 0:02:01.4]} 21. exf5
{[%clk 0:02:19.4]} 21... Bxf5 {[%clk 0:02:02.3]} 22. Nde4 {[%clk 0:02:15.9]}
22... Nf6 {[%clk 0:01:58.7]} 23. Bg2 {[%clk 0:02:12.9]} 23... Nxe4 {[%clk
0:01:53.8]} 24. Nxe4 {[%clk 0:01:54.9]} 24... Qd7 {[%clk 0:01:45.2]} 25. c5
{[%clk 0:01:51.4]} 25... axb4 {[%clk 0:01:22.6]} 26. axb4 {[%clk 0:01:52.3]}
26... Rxa1 {[%clk 0:01:21.8]} 27. Qxa1 {[%clk 0:01:51.8]} 27... bxc5 {[%clk
0:01:21.8]} 28. bxc5 {[%clk 0:01:52.7]} 28... Ne7 {[%clk 0:01:21.6]} 29. Rd1
{[%clk 0:01:37.7]} 29... Bxe4 {[%clk 0:00:52.6]} 30. Bxe4 {[%clk 0:01:37.1]}
30... Nf5 {[%clk 0:00:53.1]} 31. Bxf5 {[%clk 0:01:21]} 31... Qxf5 {[%clk
0:00:54]} 32. cxd6 {[%clk 0:01:21.2]} 32... cxd6 {[%clk 0:00:52.9]} 33. Qa3
{[%clk 0:01:21.3]} 33... Qg6 {[%clk 0:00:41.3]} 34. Qd3 {[%clk 0:01:13.2]} 34...
e4 {[%clk 0:00:38.2]} 35. Qe2 {[%clk 0:01:12.5]} 35... h5 {[%clk 0:00:29.2]} 36.
Bd4 {[%clk 0:00:56.2]} 36... Rf7 {[%clk 0:00:17.9]} 37. Bxg7 {[%clk 0:00:53.9]}
37... Kxg7 {[%clk 0:00:18.8]} 38. Rd4 {[%clk 0:00:50]} 38... Re7 {[%clk
0:00:19.3]} 39. Qe3 {[%clk 0:00:49.6]} 39... Qf5 {[%clk 0:00:18.7]} 40. Kg2
{[%clk 0:00:47.8]} 40... Kf7 {[%clk 0:00:17.8]} 41. Qe2 {[%clk 0:00:42.8]} 41...
g4 {[%clk 0:00:17.3]} 42. hxg4 {[%clk 0:00:32.3]} 42... hxg4 {[%clk 0:00:18.2]}
43. Qe3 {[%clk 0:00:32.4]} 43... Qf3+ {[%clk 0:00:18.4]} 44. Qxf3+ {[%clk
0:00:31.5]} 44... gxf3+ {[%clk 0:00:19.3]} 45. Kh3 {[%clk 0:00:30]} 45... Kf6
{[%clk 0:00:20.2]} 46. Kg4 {[%clk 0:00:29.3]} 46... Ke5 {[%clk 0:00:19.7]} 47.
Rd1 {[%clk 0:00:20.7]} 47... Rg7+ {[%clk 0:00:19.4]} 48. Kh5 {[%clk 0:00:20.4]}
48... Rh7+ {[%clk 0:00:20.3]} 49. Kg6 {[%clk 0:00:18.2]} 49... Rh2 {[%clk
0:00:21.2]} 50. Rf1 {[%clk 0:00:18.3]} 50... Kxd5 {[%clk 0:00:20.6]} 51. Kf5
{[%clk 0:00:18.6]} 51... Rh5+ {[%clk 0:00:19.7]} 52. Kf4 {[%clk 0:00:17.3]}
52... Re5 {[%clk 0:00:19.5]} 53. g4 {[%clk 0:00:16.8]} 53... Ke6 {[%clk
0:00:18.6]} 54. g5 {[%clk 0:00:16.3]} 54... d5 {[%clk 0:00:19.1]} 55. Ra1 {[%clk
0:00:14.2]} 55... Rf5+ {[%clk 0:00:17.9]} 56. Kg4 {[%clk 0:00:13.9]} 56... Rf8
{[%clk 0:00:18.6]} 57. Ra6+ {[%clk 0:00:12]} 57... Ke5 {[%clk 0:00:18.8]} 58. g6
{[%clk 0:00:09.1]} 58... e3 {[%clk 0:00:14]} 59. g7 {[%clk 0:00:03]} 59... Rg8
{[%clk 0:00:13.7]} 60. Kxf3 {[%clk 0:00:03.3]} 60... exf2 {[%clk 0:00:13.8]} 61.
Kxf2 {[%clk 0:00:03.6]} 61... Rxg7 {[%clk 0:00:13.8]} 62. Ra3 {[%clk 0:00:04.1]}
62... Rf7+ {[%clk 0:00:13.4]} 63. Ke2 {[%clk 0:00:04.4]} 63... Rh7 {[%clk
0:00:14.3]} 64. Kd2 {[%clk 0:00:03.2]} 64... Rh2+ {[%clk 0:00:14.5]} 65. Ke1
{[%clk 0:00:03.6]} 65... d4 {[%clk 0:00:14.8]} 66. Kd1 {[%clk 0:00:03.8]} 66...
Ke4 {[%clk 0:00:15.2]} 67. Ke1 {[%clk 0:00:03.9]} 67... Rh1+ {[%clk 0:00:15.4]}
68. Ke2 {[%clk 0:00:03.7]} 68... d3+ {[%clk 0:00:14]} 69. Kd2 {[%clk 0:00:01.3]}
69... Rh2+ {[%clk 0:00:14.4]} 0-1

[Event "*** SCC Grand Prix: Titled Tuesday Blitz"]
[Site "Chess.com"]
[Date "2020.10.13"]
[Round "8"]
[White "KonstantinB_1983"]
[Black "shriyanasmallya"]
[Result "1-0"]
[WhiteElo "2467"]
[BlackElo "1630"]
[TimeControl "180+1"]
[EndTime "11:35:15 PDT"]
[Termination "KonstantinB_1983 won by checkmate"]

1. d4 {[%clk 0:03:00.9]} 1... d5 {[%clk 0:02:59.5]} 2. c4 {[%clk 0:03:00.8]}
2... e6 {[%clk 0:02:59]} 3. Nc3 {[%clk 0:02:59.7]} 3... Nf6 {[%clk 0:02:58.3]}
4. Bg5 {[%clk 0:02:58.3]} 4... Be7 {[%clk 0:02:58.4]} 5. Nf3 {[%clk 0:02:55.9]}
5... Nbd7 {[%clk 0:02:55.4]} 6. e3 {[%clk 0:02:55.4]} 6... b6 {[%clk 0:02:55]}
7. cxd5 {[%clk 0:02:52.9]} 7... Nxd5 {[%clk 0:02:50.1]} 8. Bxe7 {[%clk
0:02:47.5]} 8... Qxe7 {[%clk 0:02:47.7]} 9. Nxd5 {[%clk 0:02:47.6]} 9... exd5
{[%clk 0:02:47.7]} 10. Qd2 {[%clk 0:02:43.5]} 10... Bb7 {[%clk 0:02:44.2]} 11.
Be2 {[%clk 0:02:41.5]} 11... O-O {[%clk 0:02:43.3]} 12. O-O {[%clk 0:02:36]}
12... c5 {[%clk 0:02:42.1]} 13. Rfd1 {[%clk 0:02:35.5]} 13... c4 {[%clk
0:02:40.2]} 14. b3 {[%clk 0:02:30.3]} 14... cxb3 {[%clk 0:02:38.9]} 15. axb3
{[%clk 0:02:29.1]} 15... Nf6 {[%clk 0:02:38.4]} 16. Ne5 {[%clk 0:02:25.2]} 16...
Ne4 {[%clk 0:02:35.8]} 17. Qb2 {[%clk 0:02:22.5]} 17... a5 {[%clk 0:02:21.8]}
18. Bd3 {[%clk 0:02:20.3]} 18... Rac8 {[%clk 0:02:12.2]} 19. Rdc1 {[%clk
0:02:16.2]} 19... f6 {[%clk 0:02:10.8]} 20. Nf3 {[%clk 0:02:14.4]} 20... h6
{[%clk 0:01:57.1]} 21. h3 {[%clk 0:02:09.1]} 21... Qf7 {[%clk 0:01:55]} 22. Qa3
{[%clk 0:01:58.1]} 22... Qe6 {[%clk 0:01:31.6]} 23. b4 {[%clk 0:01:55.2]} 23...
axb4 {[%clk 0:01:26.3]} 24. Qxb4 {[%clk 0:01:53.9]} 24... Rxc1+ {[%clk
0:01:22.2]} 25. Rxc1 {[%clk 0:01:52.5]} 25... Ra8 {[%clk 0:01:22.5]} 26. Rb1
{[%clk 0:01:48.9]} 26... Bc8 {[%clk 0:01:12.3]} 27. Qxb6 {[%clk 0:01:44]} 27...
Qxb6 {[%clk 0:01:12]} 28. Rxb6 {[%clk 0:01:42.8]} 28... Ra1+ {[%clk 0:01:12.2]}
29. Rb1 {[%clk 0:01:40.6]} 29... Rxb1+ {[%clk 0:01:11.6]} 30. Bxb1 {[%clk
0:01:39.4]} 30... Ba6 {[%clk 0:01:11.4]} 31. Bxe4 {[%clk 0:01:31.8]} 31... dxe4
{[%clk 0:01:12.3]} 32. Nd2 {[%clk 0:01:31]} 32... Bb7 {[%clk 0:01:10.6]} 33. Kf1
{[%clk 0:01:25.5]} 33... Kf7 {[%clk 0:01:09.7]} 34. Ke1 {[%clk 0:01:25]} 34...
Ke6 {[%clk 0:01:09.7]} 35. Kd1 {[%clk 0:01:23]} 35... g5 {[%clk 0:01:09.1]} 36.
f3 {[%clk 0:01:19.8]} 36... f5 {[%clk 0:01:08.9]} 37. fxe4 {[%clk 0:01:18.7]}
37... fxe4 {[%clk 0:01:09.8]} 38. Ke2 {[%clk 0:01:15.4]} 38... Ba6+ {[%clk
0:01:06.6]} 39. Kf2 {[%clk 0:01:14.5]} 39... Kd5 {[%clk 0:01:04.9]} 40. Nb3
{[%clk 0:01:13]} 40... Bc4 {[%clk 0:01:02.9]} 41. Nc5 {[%clk 0:01:12.1]} 41...
Bb5 {[%clk 0:00:56.6]} 42. Kg3 {[%clk 0:01:09.4]} 42... Be8 {[%clk 0:00:55.5]}
43. h4 {[%clk 0:01:07.5]} 43... Bh5 {[%clk 0:00:53.6]} 44. hxg5 {[%clk
0:01:06.3]} 44... hxg5 {[%clk 0:00:54.5]} 45. Nd7 {[%clk 0:01:05.5]} 45... Ke6
{[%clk 0:00:54.4]} 46. Ne5 {[%clk 0:01:03.9]} 46... Be2 {[%clk 0:00:49]} 47. Kf2
{[%clk 0:01:02.9]} 47... Bd1 {[%clk 0:00:46.9]} 48. Ke1 {[%clk 0:01:01.8]} 48...
Bh5 {[%clk 0:00:45.9]} 49. Kd2 {[%clk 0:01:00.9]} 49... g4 {[%clk 0:00:41.2]}
50. g3 {[%clk 0:00:59.8]} 50... Kf5 {[%clk 0:00:41.1]} 51. Kc3 {[%clk
0:00:58.7]} 51... Be8 {[%clk 0:00:39.7]} 52. Kc4 {[%clk 0:00:58.4]} 52... Bh5
{[%clk 0:00:32.4]} 53. Kd5 {[%clk 0:00:56.5]} 53... Be8 {[%clk 0:00:28.6]} 54.
Kd6 {[%clk 0:00:55.3]} 54... Bh5 {[%clk 0:00:25.3]} 55. d5 {[%clk 0:00:53.5]}
55... Kf6 {[%clk 0:00:23.2]} 56. Nd7+ {[%clk 0:00:47.1]} 56... Kf7 {[%clk
0:00:20.4]} 57. Ke5 {[%clk 0:00:45.9]} 57... Ke7 {[%clk 0:00:20]} 58. Nf6 {[%clk
0:00:44.4]} 58... Bg6 {[%clk 0:00:20.2]} 59. Nxg4 {[%clk 0:00:42.9]} 59... Kd7
{[%clk 0:00:20]} 60. Nf6+ {[%clk 0:00:42]} 60... Ke7 {[%clk 0:00:20.2]} 61. Nxe4
{[%clk 0:00:41.7]} 61... Bxe4 {[%clk 0:00:19.6]} 62. Kxe4 {[%clk 0:00:40.6]}
62... Kd6 {[%clk 0:00:20.5]} 63. Kd4 {[%clk 0:00:39.9]} 63... Ke7 {[%clk
0:00:20.3]} 64. e4 {[%clk 0:00:39.7]} 64... Kd7 {[%clk 0:00:21.1]} 65. e5 {[%clk
0:00:39.6]} 65... Ke7 {[%clk 0:00:22]} 66. Kc5 {[%clk 0:00:39.4]} 66... Kd7
{[%clk 0:00:22.9]} 67. e6+ {[%clk 0:00:39.2]} 67... Ke7 {[%clk 0:00:23.8]} 68.
Kc6 {[%clk 0:00:38.6]} 68... Kf8 {[%clk 0:00:23.6]} 69. Kc7 {[%clk 0:00:37.1]}
69... Ke8 {[%clk 0:00:24.5]} 70. d6 {[%clk 0:00:35.9]} 70... Kf8 {[%clk
0:00:24.7]} 71. d7 {[%clk 0:00:35]} 71... Ke7 {[%clk 0:00:24.2]} 72. d8=Q+
{[%clk 0:00:33.3]} 72... Kxe6 {[%clk 0:00:25.1]} 73. Qg5 {[%clk 0:00:32.2]}
73... Kf7 {[%clk 0:00:23.8]} 74. Kd6 {[%clk 0:00:30.5]} 74... Kf8 {[%clk
0:00:21.1]} 75. Qe7+ {[%clk 0:00:27.7]} 75... Kg8 {[%clk 0:00:20.8]} 76. Ke6
{[%clk 0:00:27.1]} 76... Kh8 {[%clk 0:00:21.3]} 77. Kf6 {[%clk 0:00:26.3]} 77...
Kg8 {[%clk 0:00:20.8]} 78. Qg7# {[%clk 0:00:26.1]} 1-0

[Event "*** SCC Grand Prix: Titled Tuesday Blitz"]
[Site "Chess.com"]
[Date "2020.10.13"]
[Round "8"]
[White "pfalcon1949"]
[Black "Chamal_Gedgafov"]
[Result "0-1"]
[WhiteElo "1939"]
[BlackElo "2163"]
[TimeControl "180+1"]
[EndTime "11:35:19 PDT"]
[Termination "Chamal_Gedgafov won by checkmate"]

1. c4 {[%clk 0:02:40.7]} 1... Nf6 {[%clk 0:02:58.9]} 2. Nc3 {[%clk 0:02:39.8]}
2... c5 {[%clk 0:02:59.3]} 3. g3 {[%clk 0:02:39.2]} 3... Nc6 {[%clk 0:02:59.3]}
4. Bg2 {[%clk 0:02:39.8]} 4... e6 {[%clk 0:02:57]} 5. e4 {[%clk 0:02:39.7]} 5...
d6 {[%clk 0:02:54.7]} 6. Nge2 {[%clk 0:02:39.6]} 6... a6 {[%clk 0:02:54.5]} 7.
a4 {[%clk 0:02:38.5]} 7... Qc7 {[%clk 0:02:54.4]} 8. O-O {[%clk 0:02:38.2]} 8...
Be7 {[%clk 0:02:54.5]} 9. d3 {[%clk 0:02:37.2]} 9... b6 {[%clk 0:02:54.3]} 10.
Be3 {[%clk 0:02:37.1]} 10... Bb7 {[%clk 0:02:54.4]} 11. d4 {[%clk 0:02:35.5]}
11... cxd4 {[%clk 0:02:53.5]} 12. Nxd4 {[%clk 0:02:35.6]} 12... Ne5 {[%clk
0:02:50.7]} 13. b3 {[%clk 0:02:34.8]} 13... b5 {[%clk 0:02:50.6]} 14. axb5
{[%clk 0:02:33.6]} 14... axb5 {[%clk 0:02:42.7]} 15. Ncxb5 {[%clk 0:02:32.5]}
15... Qd7 {[%clk 0:02:41.8]} 16. Rxa8+ {[%clk 0:02:27.7]} 16... Bxa8 {[%clk
0:02:41.1]} 17. Qa1 {[%clk 0:02:27.1]} 17... O-O {[%clk 0:02:40.3]} 18. Qa7
{[%clk 0:02:22.4]} 18... Qxa7 {[%clk 0:02:34.6]} 19. Nxa7 {[%clk 0:02:21.4]}
19... Nxe4 {[%clk 0:02:32.1]} 20. Ra1 {[%clk 0:02:17.4]} 20... Nc5 {[%clk
0:02:26.6]} 21. Nab5 {[%clk 0:02:12]} 21... Bxg2 {[%clk 0:02:22.2]} 22. Kxg2
{[%clk 0:02:12.2]} 22... Rb8 {[%clk 0:02:14.7]} 23. Ra7 {[%clk 0:02:11.3]} 23...
Bf8 {[%clk 0:02:14.1]} 24. h3 {[%clk 0:02:03.9]} 24... d5 {[%clk 0:01:59.5]} 25.
f4 {[%clk 0:01:47.9]} 25... Ned3 {[%clk 0:01:48.6]} 26. Nc6 {[%clk 0:01:41.9]}
26... Rc8 {[%clk 0:01:31.7]} 27. cxd5 {[%clk 0:01:39.1]} 27... exd5 {[%clk
0:01:27.4]} 28. Nbd4 {[%clk 0:01:12.3]} 28... Nxb3 {[%clk 0:01:18.7]} 29. Nxb3
{[%clk 0:01:11.9]} 29... Rxc6 {[%clk 0:01:17.4]} 30. Kf3 {[%clk 0:01:12.5]}
30... Rc3 {[%clk 0:01:07]} 31. Nd4 {[%clk 0:01:10]} 31... h5 {[%clk 0:00:59.2]}
32. Bd2 {[%clk 0:00:58.2]} 32... Rc4 {[%clk 0:00:52.2]} 33. Nf5 {[%clk
0:00:54.9]} 33... g6 {[%clk 0:00:50]} 34. Ne7+ {[%clk 0:00:51.3]} 34... Bxe7
{[%clk 0:00:42]} 35. Rxe7 {[%clk 0:00:52.2]} 35... Nc5 {[%clk 0:00:39.6]} 36.
Ba5 {[%clk 0:00:40.2]} 36... Ra4 {[%clk 0:00:28.4]} 37. Bc7 {[%clk 0:00:35.9]}
37... Ra3+ {[%clk 0:00:26.9]} 38. Kg2 {[%clk 0:00:31.4]} 38... Ne4 {[%clk
0:00:26.6]} 39. Be5 {[%clk 0:00:30.1]} 39... f6 {[%clk 0:00:26.8]} 40. Bc7
{[%clk 0:00:18.9]} 40... Rxg3+ {[%clk 0:00:25.9]} 41. Kh2 {[%clk 0:00:18.5]}
41... Rd3 {[%clk 0:00:22.1]} 42. Rd7 {[%clk 0:00:18.2]} 42... f5 {[%clk
0:00:19.5]} 43. h4 {[%clk 0:00:18.4]} 43... Rd2+ {[%clk 0:00:18.3]} 44. Kh3
{[%clk 0:00:17.6]} 44... Nf6 {[%clk 0:00:14.3]} 45. Re7 {[%clk 0:00:16.2]} 45...
Ng4 {[%clk 0:00:13.6]} 46. Bd6 {[%clk 0:00:13]} 46... d4 {[%clk 0:00:13.1]} 47.
Re8+ {[%clk 0:00:12.5]} 47... Kf7 {[%clk 0:00:12.4]} 48. Re7+ {[%clk 0:00:12.6]}
48... Kf6 {[%clk 0:00:12]} 49. Rb7 {[%clk 0:00:10]} 49... d3 {[%clk 0:00:12.1]}
50. Be7+ {[%clk 0:00:08.1]} 50... Ke6 {[%clk 0:00:11.6]} 51. Bb4 {[%clk
0:00:06.8]} 51... Re2 {[%clk 0:00:10.2]} 52. Re7+ {[%clk 0:00:06.9]} 52... Kd5
{[%clk 0:00:09.5]} 53. Rxe2 {[%clk 0:00:07.8]} 53... dxe2 {[%clk 0:00:09]} 54.
Kg3 {[%clk 0:00:08.4]} 54... Ke4 {[%clk 0:00:09]} 55. Ba5 {[%clk 0:00:08.4]}
55... Ke3 {[%clk 0:00:07.8]} 56. Be1 {[%clk 0:00:08.5]} 56... Nf6 {[%clk
0:00:06.6]} 57. Ba5 {[%clk 0:00:05.4]} 57... Nd5 {[%clk 0:00:06.7]} 58. Be1
{[%clk 0:00:02.4]} 58... Nxf4 {[%clk 0:00:06.1]} 59. Bf2+ {[%clk 0:00:02.7]}
59... Ke4 {[%clk 0:00:05.2]} 60. Be1 {[%clk 0:00:02.9]} 60... Nd3 {[%clk
0:00:05]} 61. Bc3 {[%clk 0:00:02.9]} 61... e1=Q+ {[%clk 0:00:04.7]} 62. Bxe1
{[%clk 0:00:03.6]} 62... Nxe1 {[%clk 0:00:04.7]} 63. Kf2 {[%clk 0:00:04]} 63...
Nf3 {[%clk 0:00:04.6]} 64. Kg3 {[%clk 0:00:04]} 64... Nxh4 {[%clk 0:00:04.1]}
65. Kxh4 {[%clk 0:00:04.2]} 65... f4 {[%clk 0:00:04.9]} 66. Kg5 {[%clk
0:00:04.2]} 66... f3 {[%clk 0:00:05.2]} 67. Kxg6 {[%clk 0:00:05.1]} 67... f2
{[%clk 0:00:05.6]} 68. Kxh5 {[%clk 0:00:06]} 68... f1=Q {[%clk 0:00:05.7]} 69.
Kg5 {[%clk 0:00:06.9]} 69... Qf4+ {[%clk 0:00:05.1]} 70. Kg6 {[%clk 0:00:07.2]}
70... Ke5 {[%clk 0:00:05.2]} 71. Kg7 {[%clk 0:00:07.7]} 71... Ke6 {[%clk
0:00:05.6]} 72. Kg8 {[%clk 0:00:07.6]} 72... Qf7+ {[%clk 0:00:04.9]} 73. Kh8
{[%clk 0:00:07.5]} 73... Qe7 {[%clk 0:00:05.8]} 74. Kg8 {[%clk 0:00:07.4]} 74...
Kf6 {[%clk 0:00:06.7]} 75. Kh8 {[%clk 0:00:06.1]} 75... Qg7# {[%clk 0:00:07.6]}
0-1

[Event "*** SCC Grand Prix: Titled Tuesday Blitz"]
[Site "Chess.com"]
[Date "2020.10.13"]
[Round "8"]
[White "GiantThresher"]
[Black "BillieKimbah"]
[Result "1-0"]
[WhiteElo "2867"]
[BlackElo "2930"]
[TimeControl "180+1"]
[EndTime "11:35:26 PDT"]
[Termination "GiantThresher won on time"]

1. e4 {[%clk 0:03:00.9]} 1... e5 {[%clk 0:02:59.4]} 2. Nf3 {[%clk 0:03:00.9]}
2... d6 {[%clk 0:03:00]} 3. Nc3 {[%clk 0:02:53.6]} 3... Nf6 {[%clk 0:02:59.6]}
4. d4 {[%clk 0:02:51.2]} 4... exd4 {[%clk 0:02:59.6]} 5. Qxd4 {[%clk 0:02:52.1]}
5... Be7 {[%clk 0:02:56.4]} 6. Bg5 {[%clk 0:02:50.3]} 6... O-O {[%clk
0:02:52.9]} 7. O-O-O {[%clk 0:02:49.9]} 7... Nc6 {[%clk 0:02:51.1]} 8. Qd2
{[%clk 0:02:34.7]} 8... a6 {[%clk 0:02:50.8]} 9. h3 {[%clk 0:02:27.9]} 9... b5
{[%clk 0:02:50]} 10. Qe3 {[%clk 0:02:20.6]} 10... Be6 {[%clk 0:02:26.4]} 11. e5
{[%clk 0:02:13]} 11... Nd7 {[%clk 0:02:26.4]} 12. Bxe7 {[%clk 0:02:12.7]} 12...
Qxe7 {[%clk 0:02:26.2]} 13. exd6 {[%clk 0:02:12.7]} 13... cxd6 {[%clk
0:02:26.8]} 14. Bd3 {[%clk 0:01:55.6]} 14... b4 {[%clk 0:02:15.9]} 15. Ne4
{[%clk 0:01:53.3]} 15... Bxa2 {[%clk 0:01:52.2]} 16. Nxd6 {[%clk 0:01:37]} 16...
Qxe3+ {[%clk 0:01:19.7]} 17. fxe3 {[%clk 0:01:37.9]} 17... Nc5 {[%clk
0:01:19.7]} 18. b3 {[%clk 0:01:29.6]} 18... Rfd8 {[%clk 0:01:08.4]} 19. Bc4
{[%clk 0:01:22.5]} 19... Na5 {[%clk 0:00:59.2]} 20. Bxf7+ {[%clk 0:01:18.5]}
20... Kf8 {[%clk 0:00:59]} 21. Bd5 {[%clk 0:01:05.7]} 21... Ra7 {[%clk
0:00:57.7]} 22. Nc4 {[%clk 0:00:58.1]} 22... Ncxb3+ {[%clk 0:00:31.2]} 23. cxb3
{[%clk 0:00:57.3]} 23... Bxb3 {[%clk 0:00:32.1]} 24. Nxa5 {[%clk 0:00:51.8]}
24... Bxd5 {[%clk 0:00:32.4]} 25. Kb2 {[%clk 0:00:49.9]} 25... Rad7 {[%clk
0:00:30.4]} 26. Ne5 {[%clk 0:00:36.2]} 26... Rd6 {[%clk 0:00:30.6]} 27. Rhf1+
{[%clk 0:00:31.6]} 27... Ke8 {[%clk 0:00:30.8]} 28. Rf2 {[%clk 0:00:31.5]} 28...
Be6 {[%clk 0:00:28.1]} 29. Rxd6 {[%clk 0:00:30.6]} 29... Rxd6 {[%clk 0:00:29]}
30. Nac6 {[%clk 0:00:25.8]} 30... Rd5 {[%clk 0:00:26.6]} 31. Nf3 {[%clk
0:00:22]} 31... a5 {[%clk 0:00:24.3]} 32. Rd2 {[%clk 0:00:21.7]} 32... Rxd2+
{[%clk 0:00:22.9]} 33. Nxd2 {[%clk 0:00:21.6]} 33... Bd5 {[%clk 0:00:23.8]} 34.
Nxa5 {[%clk 0:00:20.5]} 34... Bxg2 {[%clk 0:00:24.4]} 35. h4 {[%clk 0:00:21.4]}
35... h5 {[%clk 0:00:24.5]} 36. Nac4 {[%clk 0:00:17.4]} 36... Ke7 {[%clk
0:00:23.1]} 37. e4 {[%clk 0:00:16.5]} 37... Ke6 {[%clk 0:00:21.6]} 38. Kb3
{[%clk 0:00:14.9]} 38... Bh1 {[%clk 0:00:07.6]} 39. Kxb4 {[%clk 0:00:12.9]}
39... g5 {[%clk 0:00:08.2]} 40. hxg5 {[%clk 0:00:13.3]} 40... h4 {[%clk
0:00:08.9]} 41. Ne3 {[%clk 0:00:13.7]} 41... h3 {[%clk 0:00:09.3]} 42. Ng4
{[%clk 0:00:14.1]} 42... Kf7 {[%clk 0:00:07.4]} 43. e5 {[%clk 0:00:08.2]} 43...
Kg6 {[%clk 0:00:06.5]} 44. e6 {[%clk 0:00:08.4]} 44... Bd5 {[%clk 0:00:04]} 45.
e7 {[%clk 0:00:06.5]} 45... Kf7 {[%clk 0:00:04.6]} 46. Kc5 {[%clk 0:00:04.8]}
46... Be6 {[%clk 0:00:03]} 47. Nh2 {[%clk 0:00:02.5]} 47... Kxe7 {[%clk
0:00:03.5]} 48. Kd4 {[%clk 0:00:03.2]} 48... Kf7 {[%clk 0:00:03.7]} 49. Ke5
{[%clk 0:00:03.8]} 49... Bc8 {[%clk 0:00:03.9]} 50. Kf4 {[%clk 0:00:04.3]} 50...
Kg6 {[%clk 0:00:04.8]} 51. Ndf3 {[%clk 0:00:04.8]} 51... Kh5 {[%clk 0:00:04.1]}
52. Ng1 {[%clk 0:00:04.4]} 52... Kg6 {[%clk 0:00:03]} 53. Nhf3 {[%clk
0:00:04.1]} 53... Kh5 {[%clk 0:00:03.3]} 54. Kg3 {[%clk 0:00:03.5]} 54... h2
{[%clk 0:00:02.5]} 55. Kxh2 {[%clk 0:00:03.1]} 55... Kg4 {[%clk 0:00:03.2]} 56.
Kg2 {[%clk 0:00:03]} 56... Bb7 {[%clk 0:00:03.2]} 57. Kf2 {[%clk 0:00:03.6]}
57... Ba8 {[%clk 0:00:01.8]} 58. Ke3 {[%clk 0:00:04]} 58... Bb7 {[%clk
0:00:02.1]} 59. Kd4 {[%clk 0:00:02.4]} 59... Bc8 {[%clk 0:00:02]} 60. Ke5 {[%clk
0:00:02.6]} 60... Bd7 {[%clk 0:00:01.7]} 61. Kf6 {[%clk 0:00:03]} 61... Be8
{[%clk 0:00:02.3]} 62. Ne5+ {[%clk 0:00:01.7]} 62... Kf4 {[%clk 0:00:02.9]} 63.
Ngf3 {[%clk 0:00:01.7]} 63... Bh5 {[%clk 0:00:03.4]} 64. Nf7 {[%clk 0:00:02.6]}
64... Kxf3 {[%clk 0:00:03.3]} 65. Ne5+ {[%clk 0:00:03.3]} 65... Kf4 {[%clk
0:00:03.7]} 66. Nd7 {[%clk 0:00:04.2]} 66... Kg4 {[%clk 0:00:03.8]} 67. Nf8
{[%clk 0:00:05.1]} 67... Kf4 {[%clk 0:00:03.8]} 68. Ne6+ {[%clk 0:00:06]} 68...
Ke4 {[%clk 0:00:03.7]} 69. Ng7 {[%clk 0:00:06.9]} 69... Bg4 {[%clk 0:00:03.4]}
70. g6 {[%clk 0:00:07.1]} 70... Kd4 {[%clk 0:00:03.1]} 71. Nf5+ {[%clk
0:00:06.6]} 71... Ke4 {[%clk 0:00:02.5]} 72. g7 {[%clk 0:00:07.1]} 72... Bxf5
{[%clk 0:00:01.7]} 73. g8=Q {[%clk 0:00:07.5]} 73... Ke3 {[%clk 0:00:01.6]} 74.
Qg5+ {[%clk 0:00:08]} 1-0